[Event "Bruges Masters 2019"]
[Site "Bruges"]
[Date "2019.08.12"]
[Round "3.6"]
[White "Li, Zhenyu"]
[Black "Offringa, Joost"]
[Result "1-0"]
[ECO "A80"]
[WhiteElo "2129"]
[BlackElo "2291"]
[Annotator "NA"]
[PlyCount "49"]
[EventDate "2019.08.11"]
[EventType "swiss"]
[EventCountry "BEL"]
[SourceTitle "playchess.com"]
[Source "ChessBase"]
[SourceQuality "1"]
[TimeControl "5400+30"]

1. d4 {[%emt 0:00:10]} f5 {[%emt 0:00:00]} 2. Bg5 {[%emt 0:01:07]} h6 {[%emt 0:00:00]} 3. Bh4 {[%emt 0:00:08]} g5 {[%emt 0:00:00]} 4. Bg3 {[%emt 0:00:14]} Nf6 {[%emt 0:00:00]} 5. e3 {[%emt 0:01:13]} d6 {[%emt 0:00:03]} 6. h4 {[%emt 0:01:26]} Rg8 {[%emt 0:00:03]} 7. hxg5 {[%emt 0:02:25]} hxg5 {[%emt 0:00:04]} 8. Bd3 {[%emt 0:00:51]} e6 {[%emt 0:00:05]} 9. Nc3 {[%emt 0:04:28]} Qe7 {[%emt 0:00:11]} 10. Qd2 {[%emt 0:10:25]} Nc6 {[%emt 0:00:23]} 11. O-O-O {[%emt 0:04:14]} Bd7 {[%emt 0:00:23]} 12. Nge2 {[%emt 0:01:11]} O-O-O {[%emt 0:00:26]} 13. f3 {[%emt 0:00:10]} Bg7 {[%emt 0:17:33]} 14. e4 {[%emt 0:02:10]} fxe4 {[%emt 0:00:40]} 15. Nxe4 {[%emt 0:05:36]} Nxe4 {[%emt 0:05:20]} 16. Bxe4 {[%emt 0:00:25]} d5 {[%emt 0:02:24]} 17. Bd3 $11 {[%emt 0:00:33]} Nxd4 {[%emt 0:19:41]} 18. Nxd4 {[%emt 0:04:13]} Bxd4 {[%emt 0:00:30]} 19. Bh7 {[%emt 0:00:06]} Bb6 {[%emt 0:07:29]} 20. Bxg8 {[%emt 0:00:34]} Rxg8 {[%emt 0:00:03]} 21. Qc3 {[%emt 0:01:49]} Be8 {[%emt 0:01:11]} 22. Qe5 {[%emt 0:00:46]} Bg6 {[%emt 0:00:55]} 23. Rxd5 {[%emt 0:00:46]} Qe8 {[%emt 0:01:35]} 24. Rc5 {[%emt 0:01:11]} Bxc5 {[%emt 0:00:58]} 25. Qxc7# {[%emt 0:56:19]} 1-0

[Event "Bruges Masters 2019"]
[Site "Bruges"]
[Date "2019.08.12"]
[Round "3.7"]
[White "Wilschut, Peter"]
[Black "Butzen, Robin"]
[Result "0-1"]
[ECO "A37"]
[WhiteElo "2279"]
[BlackElo "1967"]
[Annotator "NA"]
[PlyCount "94"]
[EventDate "2019.08.11"]
[EventType "swiss"]
[EventCountry "BEL"]
[SourceTitle "playchess.com"]
[Source "ChessBase"]
[SourceQuality "1"]
[TimeControl "5400+30"]

1. c4 {[%emt 0:00:00]} c5 {[%emt 0:00:00]} 2. Nc3 {[%emt 0:00:21]} Nc6 {[%emt 0:00:00]} 3. g3 {[%emt 0:00:06]} g6 {[%emt 0:00:00]} 4. Bg2 {[%emt 0:00:05]} Bg7 {[%emt 0:00:00]} 5. d3 {[%emt 0:01:06]} d6 {[%emt 0:00:23]} 6. Nf3 {[%emt 0:00:57]} e5 {[%emt 0:00:05]} 7. Nd2 {[%emt 0:00:50]} Nge7 {[%emt 0:01:18]} 8. Nf1 {[%emt 0:00:14]} O-O {[%emt 0:00:45]} 9. Ne3 {[%emt 0:03:26]} Rb8 {[%emt 0:04:20]} 10. h4 {[%emt 0:03:39]} h6 {[%emt 0:03:12]} 11. Ned5 {[%emt 0:02:48]} a6 {[%emt 0:06:45]} 12. a4 {[%emt 0:09:47]} Nb4 {[%emt 0:01:59]} 13. Nxb4 {[%emt 0:09:16]} cxb4 {[%emt 0:00:05]} 14. Nd5 {[%emt 0:00:15]} a5 {[%emt 0:03:41]} 15. h5 {[%emt 0:20:52]} g5 {[%emt 0:02:36]} 16. Nxe7+ {[%emt 0:03:06]} Qxe7 {[%emt 0:00:05]} 17. e4 {[%emt 0:04:24]} f5 {[%emt 0:14:27]} 18. exf5 {[%emt 0:01:33]} Bxf5 {[%emt 0:00:47]} 19. Be3 {[%emt 0:00:33]} e4 {[%emt 0:07:40]} 20. d4 {[%emt 0:05:39]} d5 {[%emt 0:04:13]} 21. c5 {[%emt 0:02:56]} b6 {[%emt 0:07:34]} 22. Rc1 {[%emt 0:02:20]} Rfc8 {[%emt 0:04:30]} 23. cxb6 {[%emt 0:12:10]} Rxc1 {[%emt 0:06:35]} 24. Qxc1 {[%emt 0:00:11]} Rxb6 {[%emt 0:00:05]} 25. Bf1 {[%emt 0:01:14]} Bd7 {[%emt 0:05:16]} 26. Qc7 {[%emt 0:02:52]} Qd6 {[%emt 0:04:00]} 27. Qxd6 {[%emt 0:00:24]} Rxd6 {[%emt 0:00:18]} 28. b3 {[%emt 0:00:31]} Bg4 {[%emt 0:06:44]} 29. Bb5 {[%emt 0:00:50]} Rd8 {[%emt 0:00:13]} 30. Ba6 {[%emt 0:02:03]} Kf7 {[%emt 0:05:45]} 31. O-O {[%emt 0:03:46]} Bxh5 {[%emt 0:03:16]} 32. Rc1 {[%emt 0:00:05]} Bf8 {[%emt 0:00:18]} 33. Bc8 {[%emt 0:01:19]} Bd1 {[%emt 0:02:41]} 34. Rxd1 {[%emt 0:05:12]} Rxc8 {[%emt 0:00:04]} 35. Rc1 {[%emt 0:00:04]} Rc3 {[%emt 0:00:12]} 36. Kf1 {[%emt 0:00:44]} Rxb3 {[%emt 0:04:53]} 37. Rc7+ {[%emt 0:00:16]} Ke6 {[%emt 0:00:05]} 38. Ra7 {[%emt 0:01:46]} Ra3 {[%emt 0:00:36]} 39. Ra6+ {[%emt 0:00:54]} Kd7 {[%emt 0:00:10]} 40. Rxa5 {[%emt 0:00:13]} Kc6 {[%emt 0:00:59]} 41. Ra6+ {[%emt 0:00:14]} Kc7 {[%emt 0:01:46]} 42. Ra5 {[%emt 0:01:20]} Ra2 {[%emt 0:00:25]} 43. Rxd5 {[%emt 0:00:31]} b3 {[%emt 0:00:04]} 44. Rb5 {[%emt 0:00:21]} b2 {[%emt 0:00:04]} 45. Kg2 {[%emt 0:00:30]} Ba3 {[%emt 0:00:11]} 46. d5 {[%emt 0:00:31]} Ra1 {[%emt 0:00:48]} 47. d6+ {[%emt 0:00:41]} Kxd6 {[%emt 0:02:24]} 0-1

[Event "Bruges Masters 2019"]
[Site "Bruges"]
[Date "2019.08.12"]
[Round "3.8"]
[White "Citak, Selim"]
[Black "Olander, Aleksi"]
[Result "0-1"]
[ECO "A60"]
[WhiteElo "2253"]
[BlackElo "2066"]
[Annotator "ChessBase"]
[PlyCount "72"]
[EventDate "2019.08.11"]
[EventType "swiss"]
[EventCountry "BEL"]
[SourceTitle "playchess.com"]
[Source "ChessBase"]
[SourceQuality "1"]
[TimeControl "5400+30"]

1. d4 {[%emt 0:00:00]} Nf6 {[%emt 0:00:00]} 2. c4 {[%emt 0:00:00]} c5 {[%emt 0:00:00]} 3. d5 {[%emt 0:00:11]} e6 {[%emt 0:00:00]} 4. Nc3 {[%emt 0:00:12]} exd5 {[%emt 0:00:00]} 5. cxd5 {[%emt 0:00:04]} Bd6 {[%emt 0:00:01]} 6. g3 {[%emt 0:01:34]} O-O {[%emt 0:00:13]} 7. Bg2 {[%emt 0:00:04]} Re8 {[%emt 0:00:23]} 8. Nh3 {[%emt 0:01:14]} Bf8 {[%emt 0:00:13]} 9. O-O {[%emt 0:01:19]} d6 {[%emt 0:00:04]} 10. b3 {[%emt 0:01:42]} a6 {[%emt 0:04:10]} 11. a4 {[%emt 0:01:41]} Nbd7 {[%emt 0:00:31]} 12. e4 {[%emt 0:02:36]} Rb8 {[%emt 0:02:28]} 13. Bb2 {[%emt 0:03:15]} b5 {[%emt 0:02:15]} 14. axb5 {[%emt 0:01:16]} axb5 {[%emt 0:00:04]} 15. Qc2 {[%emt 0:00:58]} Ne5 {[%emt 0:08:59]} 16. Nf4 {[%emt 0:08:23]} Bg4 {[%emt 0:06:06]} 17. f3 {[%emt 0:04:03]} Bd7 {[%emt 0:00:12]} 18. Nce2 {[%emt 0:06:56]} b4 {[%emt 0:03:24]} 19. Bxe5 {[%emt 0:08:59]} Rxe5 {[%emt 0:00:47]} 20. Nd3 {[%emt 0:00:11]} Re8 {[%emt 0:00:58]} 21. Nb2 {[%emt 0:00:23]} Bb5 {[%emt 0:05:59]} 22. Rfe1 {[%emt 0:01:28]} Qb6 {[%emt 0:05:54]} 23. Nc4 {[%emt 0:05:44]} Bxc4 {[%emt 0:00:08]} 24. Qxc4 {[%emt 0:00:15]} Ra8 {[%emt 0:00:10]} 25. Nf4 {[%emt 0:03:12]} Ra5 {[%emt 0:07:35]} 26. Rxa5 {[%emt 0:01:59]} Qxa5 {[%emt 0:01:23]} 27. Nd3 {[%emt 0:00:04]} Nd7 {[%emt 0:01:01]} 28. f4 {[%emt 0:00:38]} Nb6 {[%emt 0:04:41]} 29. Qc2 {[%emt 0:02:41]} Rc8 {[%emt 0:08:51]} 30. Nb2 {[%emt 0:08:17]} c4 {[%emt 0:05:34]} 31. bxc4 {[%emt 0:00:18]} b3 {[%emt 0:00:19]} 32. Qf2 {[%emt 0:01:09]} Nxc4 {[%emt 0:02:34]} 33. Rc1 {[%emt 0:01:10]} Nxb2 {[%emt 0:03:34]} 34. Rxc8 {[%emt 0:00:22]} Nd3 {[%emt 0:00:21]} 35. Qd4 {[%emt 0:01:47]} b2 {[%emt 0:01:32]} 36. Rb8 {[%emt 0:03:17]} Qa1+ {[%emt 0:00:28]} 0-1

[Event "Bruges Masters 2019"]
[Site "Bruges"]
[Date "2019.08.12"]
[Round "3.9"]
[White "Todts, Benny"]
[Black "Tirelli, Mauro"]
[Result "0-1"]
[ECO "B32"]
[WhiteElo "1932"]
[BlackElo "2247"]
[Annotator "NA"]
[PlyCount "68"]
[EventDate "2019.08.11"]
[EventType "swiss"]
[EventCountry "BEL"]
[SourceTitle "playchess.com"]
[Source "ChessBase"]
[SourceQuality "1"]
[TimeControl "5400+30"]

1. e4 {[%emt 0:00:50]} c5 {[%emt 0:00:00]} 2. d4 {[%emt 0:00:05]} cxd4 {[%emt 0:00:00]} 3. Nf3 {[%emt 0:00:05]} Nc6 {[%emt 0:00:00]} 4. Nxd4 {[%emt 0:00:08]} e5 {[%emt 0:00:22]} 5. Nb5 {[%emt 0:00:58]} d6 {[%emt 0:00:06]} 6. N1c3 {[%emt 0:00:21]} a6 {[%emt 0:00:07]} 7. Na3 {[%emt 0:00:05]} b5 {[%emt 0:00:04]} 8. Nd5 {[%emt 0:00:05]} Nge7 {[%emt 0:00:39]} 9. Bg5 {[%emt 0:02:27]} h6 {[%emt 0:00:53]} 10. Bh4 {[%emt 0:06:42]} Be6 {[%emt 0:04:43]} 11. c4 {[%emt 0:02:53]} Nd4 {[%emt 0:07:52]} 12. Bxe7 {[%emt 0:06:15]} Bxe7 {[%emt 0:00:18]} 13. Nxe7 {[%emt 0:00:34]} Qxe7 {[%emt 0:08:30]} 14. cxb5 {[%emt 0:02:01]} Qb7 {[%emt 0:00:18]} 15. Bd3 {[%emt 0:05:53]} O-O {[%emt 0:04:56]} 16. O-O {[%emt 0:02:58]} axb5 {[%emt 0:00:09]} 17. Nc2 {[%emt 0:07:40]} Nc6 {[%emt 0:16:49]} 18. b3 {[%emt 0:07:04]} Qb6 {[%emt 0:02:29]} 19. Qe2 {[%emt 0:02:07]} b4 {[%emt 0:01:32]} 20. Bc4 {[%emt 0:01:00]} Kh7 {[%emt 0:02:11]} 21. Rfd1 {[%emt 0:06:10]} Qc5 {[%emt 0:02:41]} 22. Bd5 {[%emt 0:05:07]} Bxd5 {[%emt 0:05:31]} 23. Rxd5 {[%emt 0:02:09]} Qc3 {[%emt 0:00:08]} 24. Qd3 {[%emt 0:05:44]} Qb2 {[%emt 0:03:05]} 25. Qd1 {[%emt 0:03:36]} Rfd8 {[%emt 0:02:33]} 26. Rd2 {[%emt 0:02:05]} Qc3 {[%emt 0:05:26]} 27. Ne3 {[%emt 0:03:01]} Qc5 {[%emt 0:05:50]} 28. Rc1 {[%emt 0:00:21]} Qb5 {[%emt 0:26:48]} 29. Rd5 {[%emt 0:02:47]} Qb7 {[%emt 0:00:00]} 30. Rxd6 {[%emt 0:00:27]} Rxd6 {[%emt 0:00:00]} 31. Qxd6 {[%emt 0:00:08]} Nd4 {[%emt 0:00:00]} 32. Rd1 {[%emt 0:05:40]} Qxe4 {[%emt 0:00:00]} 33. Nc4 {[%emt 0:01:51]} Rxa2 {[%emt 0:00:00]} 34. Nxe5 {[%emt 0:01:48]} Rd2 {[%emt 0:00:00]} 0-1

[Event "Bruges Masters 2019"]
[Site "Bruges"]
[Date "2019.08.13"]
[Round "5.1"]
[White "Ortiz Suarez, Isan Reynaldo"]
[Black "Legky, Nikolay A"]
[Result "1/2-1/2"]
[ECO "D13"]
[WhiteElo "2533"]
[BlackElo "2397"]
[Annotator "ChessBase"]
[PlyCount "55"]
[EventDate "2019.08.11"]
[EventType "swiss"]
[EventCountry "BEL"]
[SourceTitle "playchess.com"]
[Source "ChessBase"]
[SourceQuality "1"]
[TimeControl "5400+30"]

1. Nf3 {[%emt 0:00:05]} d5 {[%emt 0:00:00]} 2. g3 {[%emt 0:00:08]} c6 {[%emt 0:00:00]} 3. c4 {[%emt 0:00:20]} Nf6 {[%emt 0:00:00]} 4. Bg2 {[%emt 0:00:35]} Bf5 {[%emt 0:00:00]} 5. O-O {[%emt 0:00:30]} e6 {[%emt 0:00:00]} 6. cxd5 {[%emt 0:01:43]} cxd5 {[%emt 0:00:00]} 7. d4 {[%emt 0:01:34]} Nc6 {[%emt 0:00:36]} 8. Nc3 {[%emt 0:00:05]} h6 {[%emt 0:00:11]} 9. Bf4 {[%emt 0:08:42]} Be7 {[%emt 0:00:49]} 10. Ne5 {[%emt 0:05:12]} Rc8 {[%emt 0:12:43]} 11. Rc1 {[%emt 0:10:09]} O-O {[%emt 0:00:46]} 12. h3 {[%emt 0:01:45]} Qb6 {[%emt 0:17:16]} 13. g4 {[%emt 0:04:41]} Bh7 {[%emt 0:00:07]} 14. Qd2 {[%emt 0:03:40]} Rfd8 {[%emt 0:05:51]} 15. e3 {[%emt 0:05:02]} Nxe5 {[%emt 0:05:01]} 16. Bxe5 {[%emt 0:00:11]} Nd7 {[%emt 0:00:43]} 17. Bg3 {[%emt 0:00:18]} Nf6 {[%emt 0:01:27]} 18. Rfd1 {[%emt 0:03:16]} Rc6 {[%emt 0:01:49]} 19. f3 {[%emt 0:05:00]} Rdc8 {[%emt 0:03:28]} 20. a3 {[%emt 0:01:24]} Qb3 {[%emt 0:01:08]} 21. Be1 {[%emt 0:00:07]} Nd7 {[%emt 0:05:36]} 22. Qe2 {[%emt 0:10:08]} Nb6 {[%emt 0:43:29]} 23. e4 {[%emt 0:36:55]} Bg5 {[%emt 0:00:30]} 24. Rc2 {[%emt 0:00:30]} Nc4 25. Rcc1 {[%emt 0:00:30]} Nb6 26. Rb1 Na4 {[%emt 0:01:30]} 27. h4 {[%emt 0:01:00]} Bf4 28. Bf1 {[%emt 0:00:30]} 1/2-1/2

[Event "Bruges Masters 2019"]
[Site "Bruges"]
[Date "2019.08.13"]
[Round "5.3"]
[White "Mirzoev, Azer"]
[Black "Bekker, Stefan"]
[Result "1-0"]
[ECO "D23"]
[WhiteElo "2474"]
[BlackElo "2272"]
[Annotator "ChessBase"]
[PlyCount "72"]
[EventDate "2019.08.11"]
[EventType "swiss"]
[EventCountry "BEL"]
[SourceTitle "playchess.com"]
[Source "ChessBase"]
[SourceQuality "1"]
[TimeControl "5400+30"]

1. d4 {[%emt 0:08:14]} d5 {[%emt 0:00:44]} 2. c4 {[%emt 0:00:17]} dxc4 {[%emt 0:00:04]} 3. Nf3 {[%emt 0:00:15]} Nf6 {[%emt 0:00:05]} 4. Qa4+ {[%emt 0:00:17]} Nbd7 {[%emt 0:00:36]} 5. g3 {[%emt 0:03:00]} a6 {[%emt 0:02:43]} 6. Qxc4 {[%emt 0:00:12]} b5 {[%emt 0:00:35]} 7. Qc6 {[%emt 0:02:22]} Ra7 {[%emt 0:02:21]} 8. Bg2 {[%emt 0:02:33]} Bb7 {[%emt 0:00:35]} 9. Qc2 {[%emt 0:00:06]} Be4 {[%emt 0:01:12]} 10. Qd1 {[%emt 0:00:30]} e6 {[%emt 0:00:28]} 11. O-O {[%emt 0:04:03]} c5 {[%emt 0:02:31]} 12. Nc3 {[%emt 0:02:13]} Ba8 {[%emt 0:00:33]} 13. Be3 {[%emt 0:00:40]} cxd4 {[%emt 0:06:06]} 14. Bxd4 {[%emt 0:06:41]} Bxf3 {[%emt 0:07:27]} 15. Bxf3 {[%emt 0:01:25]} Bc5 {[%emt 0:01:11]} 16. a4 {[%emt 0:11:58]} b4 {[%emt 0:01:13]} 17. Ne4 {[%emt 0:00:42]} Nxe4 {[%emt 0:15:02]} 18. Bxe4 {[%emt 0:00:30]} e5 {[%emt 0:09:26]} 19. Bxc5 {[%emt 0:03:56]} Nxc5 {[%emt 0:00:38]} 20. Qc2 {[%emt 0:00:30]} Rc7 {[%emt 0:06:31]} 21. Rac1 {[%emt 0:16:11]} b3 {[%emt 0:03:56]} 22. Qc3 {[%emt 0:01:40]} O-O {[%emt 0:00:06]} 23. Rfd1 {[%emt 0:13:11]} Qf6 {[%emt 0:07:48]} 24. Bd5 {[%emt 0:02:50]} Rfc8 {[%emt 0:01:19]} 25. Qe3 {[%emt 0:01:45]} h5 {[%emt 0:05:40]} 26. Rc4 {[%emt 0:00:57]} g6 {[%emt 0:05:02]} 27. a5 {[%emt 0:00:13]} e4 {[%emt 0:00:59]} 28. Qc3 {[%emt 0:02:52]} Qf5 {[%emt 0:02:03]} 29. h4 {[%emt 0:02:42]} Kh7 {[%emt 0:00:15]} 30. Qe3 {[%emt 0:02:48]} Qe5 {[%emt 0:01:59]} 31. Rc3 {[%emt 0:01:22]} Na4 {[%emt 0:03:24]} 32. Rxc7 {[%emt 0:01:13]} Rxc7 {[%emt 0:00:12]} 33. Bxb3 {[%emt 0:01:18]} Nxb2 {[%emt 0:00:27]} 34. Rd5 {[%emt 0:02:12]} Qc3 {[%emt 0:00:41]} 35. Qxe4 {[%emt 0:01:05]} Qxb3 {[%emt 0:13:38]} 36. Rxh5+ {[%emt 0:05:17]} Kg7 {[%emt 0:00:30]} 1-0

[Event "Bruges Masters 2019"]
[Site "Bruges"]
[Date "2019.08.13"]
[Round "5.4"]
[White "Sterck, Arno"]
[Black "Leenhouts, Koen"]
[Result "1/2-1/2"]
[ECO "D71"]
[WhiteElo "2316"]
[BlackElo "2426"]
[Annotator "ChessBase"]
[PlyCount "103"]
[EventDate "2019.08.11"]
[EventType "swiss"]
[EventCountry "BEL"]
[SourceTitle "playchess.com"]
[Source "ChessBase"]
[SourceQuality "1"]
[TimeControl "5400+30"]

1. d4 {[%emt 0:10:20]} Nf6 {[%emt 0:00:00]} 2. c4 {[%emt 0:00:05]} g6 {[%emt 0:00:00]} 3. g3 {[%emt 0:00:02]} c6 {[%emt 0:00:00]} 4. Bg2 {[%emt 0:00:07]} d5 {[%emt 0:00:03]} 5. Qa4 {[%emt 0:00:08]} Nfd7 {[%emt 0:01:45]} 6. cxd5 {[%emt 0:00:06]} Nb6 {[%emt 0:00:06]} 7. Qd1 {[%emt 0:00:03]} cxd5 {[%emt 0:00:08]} 8. Nc3 {[%emt 0:00:32]} Bg7 {[%emt 0:00:20]} 9. e3 {[%emt 0:00:04]} Nc6 {[%emt 0:01:24]} 10. Nh3 {[%emt 0:00:50]} Bxh3 {[%emt 0:01:51]} 11. Bxh3 {[%emt 0:00:06]} O-O {[%emt 0:00:18]} 12. O-O {[%emt 0:00:10]} e6 {[%emt 0:00:42]} 13. b3 {[%emt 0:03:14]} f5 {[%emt 0:06:44]} 14. Bg2 {[%emt 1:21:13]} g5 {[%emt 0:03:55]} 15. a4 {[%emt 0:00:00]} Rc8 {[%emt 0:02:29]} 16. a5 {[%emt 0:00:00]} Nd7 {[%emt 0:04:31]} 17. Ba3 {[%emt 0:00:00]} Rf6 {[%emt 0:00:41]} 18. b4 {[%emt 0:00:00]} Bf8 {[%emt 0:09:40]} 19. Qb3 {[%emt 0:00:00]} Kh8 {[%emt 0:02:21]} 20. Rfc1 {[%emt 0:00:00]} f4 {[%emt 0:01:45]} 21. e4 {[%emt 0:00:00]} f3 {[%emt 0:06:12]} 22. Bf1 {[%emt 0:00:00]} Bg7 {[%emt 0:00:10]} 23. Qd1 {[%emt 0:00:00]} Nf8 {[%emt 0:08:42]} 24. e5 {[%emt 0:00:00]} Rf7 {[%emt 0:12:21]} 25. Nb5 {[%emt 0:00:00]} Rd7 {[%emt 0:00:09]} 26. Bb2 {[%emt 0:00:00]} g4 {[%emt 0:02:02]} 27. Nd6 {[%emt 0:00:00]} Rb8 {[%emt 0:00:23]} 28. a6 {[%emt 0:00:00]} Bh6 {[%emt 0:04:18]} 29. axb7 {[%emt 0:00:00]} Bxc1 {[%emt 0:00:49]} 30. Rxc1 {[%emt 0:00:00]} Nxb4 {[%emt 0:02:09]} 31. Rc8 {[%emt 0:00:00]} Rxd6 {[%emt 0:00:08]} 32. exd6 {[%emt 0:02:29]} Rxc8 {[%emt 0:00:31]} 33. bxc8=Q {[%emt 0:00:05]} Qxc8 {[%emt 0:00:07]} 34. Qa4 {[%emt 0:00:05]} Nc6 {[%emt 0:02:36]} 35. Ba6 {[%emt 0:00:26]} Qd7 {[%emt 0:03:45]} 36. Bb5 {[%emt 0:02:58]} Qb7 {[%emt 0:00:02]} 37. Bxc6 {[%emt 0:00:11]} Qxb2 {[%emt 0:00:08]} 38. Bb5 {[%emt 0:00:02]} Kg8 {[%emt 0:01:57]} 39. Qa6 {[%emt 0:01:30]} Qb1+ {[%emt 0:00:20]} 40. Bf1 {[%emt 0:00:06]} Qb6 {[%emt 0:00:05]} 41. Qa3 {[%emt 0:01:48]} Qxd4 {[%emt 0:05:48]} 42. h3 {[%emt 0:00:04]} h5 {[%emt 0:00:46]} 43. hxg4 {[%emt 0:00:04]} h4 {[%emt 0:01:42]} 44. Qxf3 {[%emt 0:00:24]} hxg3 {[%emt 0:00:06]} 45. Qxg3 {[%emt 0:00:07]} Qf6 {[%emt 0:02:02]} 46. g5 {[%emt 0:01:54]} Qf7 {[%emt 0:00:24]} 47. Bd3 {[%emt 0:00:31]} a5 {[%emt 0:00:16]} 48. Qg4 {[%emt 0:01:11]} Qd7 {[%emt 0:01:50]} 49. g6 {[%emt 0:00:20]} Qxd6 {[%emt 0:00:12]} 50. g7 {[%emt 0:00:14]} Qe5 {[%emt 0:00:14]} 51. gxf8=Q+ {[%emt 0:00:16]} Kxf8 {[%emt 0:00:04]} 52. Bg6 {[%emt 0:00:43]} 1/2-1/2

[Event "Bruges Masters 2019"]
[Site "Bruges"]
[Date "2019.08.13"]
[Round "5.5"]
[White "Pel, Bonno"]
[Black "Quesada Vera, Liordis"]
[Result "1-0"]
[ECO "A54"]
[WhiteElo "2255"]
[BlackElo "2386"]
[Annotator "ChessBase"]
[PlyCount "137"]
[EventDate "2019.08.11"]
[EventType "swiss"]
[EventCountry "BEL"]
[SourceTitle "playchess.com"]
[Source "ChessBase"]
[SourceQuality "1"]
[TimeControl "5400+30"]

1. g3 {[%emt 0:08:09]} d6 {[%emt 0:04:32]} 2. Bg2 {[%emt 0:00:12]} Nd7 {[%emt 0:00:21]} 3. d4 {[%emt 0:08:18]} e5 {[%emt 0:00:31]} 4. Nf3 {[%emt 0:01:48]} c6 {[%emt 0:00:24]} 5. O-O {[%emt 0:03:13]} Ngf6 {[%emt 0:01:13]} 6. c4 {[%emt 0:04:24]} Be7 {[%emt 0:00:36]} 7. Nc3 {[%emt 0:01:04]} O-O {[%emt 0:00:10]} 8. Qc2 {[%emt 0:01:30]} Re8 {[%emt 0:00:27]} 9. Rd1 {[%emt 0:03:54]} Qc7 {[%emt 0:00:18]} 10. b3 {[%emt 0:03:21]} Bf8 {[%emt 0:05:37]} 11. Bb2 {[%emt 0:03:44]} h6 {[%emt 0:02:51]} 12. e4 {[%emt 0:06:59]} exd4 {[%emt 0:09:59]} 13. Nxd4 {[%emt 0:01:06]} Nc5 {[%emt 0:00:17]} 14. b4 {[%emt 0:09:00]} Ne6 {[%emt 0:20:27]} 15. Nb3 {[%emt 0:05:27]} Ng5 {[%emt 0:08:54]} 16. h4 {[%emt 0:06:28]} Ngh7 {[%emt 0:05:06]} 17. a3 {[%emt 0:03:26]} Ng4 {[%emt 0:00:47]} 18. Rd2 {[%emt 0:04:55]} Ne5 {[%emt 0:01:11]} 19. Nd1 {[%emt 0:00:52]} Bg4 {[%emt 0:15:48]} 20. Qc3 {[%emt 0:02:06]} Nf6 {[%emt 0:01:58]} 21. f3 {[%emt 0:02:45]} Be6 {[%emt 0:01:37]} 22. Ne3 {[%emt 0:02:40]} Nh5 {[%emt 0:03:37]} 23. Kh2 {[%emt 0:03:23]} Nxc4 {[%emt 0:08:44]} 24. Nxc4 {[%emt 0:01:39]} Bxc4 {[%emt 0:00:05]} 25. Qxc4 {[%emt 0:02:12]} d5 {[%emt 0:00:05]} 26. Qc3 {[%emt 0:00:45]} Qxg3+ {[%emt 0:00:27]} 27. Kg1 {[%emt 0:00:48]} Bd6 {[%emt 0:02:56]} 28. f4 {[%emt 0:02:46]} Qxf4 {[%emt 0:00:57]} 29. Qh3 {[%emt 0:01:01]} Ng3 {[%emt 0:01:20]} 30. Rf2 {[%emt 0:01:34]} Qe3 {[%emt 0:00:55]} 31. Qg4 {[%emt 0:00:36]} Be5 {[%emt 0:01:03]} 32. Bxe5 {[%emt 0:00:35]} Rxe5 {[%emt 0:00:01]} 33. Nd2 {[%emt 0:01:22]} f5 {[%emt 0:01:16]} 34. exf5 {[%emt 0:00:59]} Rxf5 {[%emt 0:00:42]} 35. Nf3 {[%emt 0:00:47]} Ne4 {[%emt 0:01:13]} 36. Qxf5 {[%emt 0:00:37]} Qxf2+ {[%emt 0:00:20]} 37. Kh2 {[%emt 0:00:04]} Qg3+ {[%emt 0:00:33]} 38. Kg1 {[%emt 0:00:30]} Qf2+ {[%emt 0:00:51]} 39. Kh2 {[%emt 0:00:01]} Qg3+ {[%emt 0:00:16]} 40. Kg1 {[%emt 0:00:05]} Rf8 {[%emt 0:00:04]} 41. Qe6+ {[%emt 0:00:17]} Kh8 {[%emt 0:00:55]} 42. Rf1 {[%emt 0:00:06]} Qf4 {[%emt 0:00:42]} 43. Qe5 {[%emt 0:01:12]} Qe3+ {[%emt 0:00:10]} 44. Kh2 {[%emt 0:00:13]} Nf6 {[%emt 0:01:09]} 45. Qxe3 {[%emt 0:02:20]} Ng4+ {[%emt 0:00:01]} 46. Kg3 {[%emt 0:00:13]} Nxe3 {[%emt 0:00:02]} 47. Re1 {[%emt 0:00:07]} Nc2 {[%emt 0:00:56]} 48. Re7 {[%emt 0:00:23]} Rb8 {[%emt 0:00:01]} 49. Ne5 {[%emt 0:00:45]} Nxa3 {[%emt 0:00:22]} 50. Kf4 {[%emt 0:01:03]} Nb5 {[%emt 0:00:24]} 51. Bh3 {[%emt 0:01:51]} Nd4 {[%emt 0:00:22]} 52. Ng6+ {[%emt 0:00:36]} Kh7 {[%emt 0:00:22]} 53. h5 {[%emt 0:00:07]} b6 {[%emt 0:01:01]} 54. Rxa7 {[%emt 0:01:39]} c5 {[%emt 0:00:04]} 55. Rd7 {[%emt 0:00:16]} Ne2+ {[%emt 0:01:02]} 56. Ke3 {[%emt 0:01:01]} Nc3 {[%emt 0:01:16]} 57. Bf5 {[%emt 0:00:17]} Re8+ {[%emt 0:00:15]} 58. Ne7+ {[%emt 0:00:39]} Kh8 {[%emt 0:00:06]} 59. Bg6 {[%emt 0:00:03]} Rf8 {[%emt 0:00:37]} 60. Nf5 {[%emt 0:00:43]} cxb4 {[%emt 0:01:10]} 61. Rxg7 {[%emt 0:00:29]} d4+ {[%emt 0:00:19]} 62. Kxd4 {[%emt 0:00:44]} Rd8+ {[%emt 0:00:16]} 63. Kc4 {[%emt 0:00:27]} b5+ {[%emt 0:00:12]} 64. Kb3 {[%emt 0:00:16]} Nd5 {[%emt 0:01:09]} 65. Rh7+ {[%emt 0:00:08]} Kg8 {[%emt 0:00:07]} 66. Rf7 {[%emt 0:00:26]} Kh8 {[%emt 0:00:33]} 67. Nxh6 {[%emt 0:00:31]} Nf6 {[%emt 0:00:18]} 68. Rxf6 {[%emt 0:00:15]} Kg7 {[%emt 0:00:03]} 69. Ng4 {[%emt 0:00:08]} 1-0